Workbook

Sheet Sheet1
A1: 2022年度教师招聘 拟入闱体检 人员名单
A2: 人社部门（公章）： | D2: 教育部门（公章）： | G2: 填表人：
A3: 序号 | B3: 县区 | C3: 报考学校 | D3: 岗位名称 | E3: 岗位代码 | F3: 计划数 | G3: 姓名 | H3: 笔试总成绩 | I3: 面试成绩 | J3: 总成绩 | K3: 总排名
A4: 1 | B4: 九江经开区 | C4: 九江经开区中小学校 | D4: 小学-语文 | E4: 400060101010 | F4: 15 | G4: 袁楠 | H4: 206.5 | I4: 85.24 | J4: =0.2*H4+0.5*I4 -> 83.92 | K4: 1
A5: 2 | B5: 九江经开区 | C5: 九江经开区中小学校 | D5: 小学-语文 | E5: 400060101010 | F5: 15 | G5: 王宇 | H5: 197.0 | I5: 85.77 | J5: 82.285 | K5: 2
A6: 3 | B6: 九江经开区 | C6: 九江经开区中小学校 | D6: 小学-语文 | E6: 400060101010 | F6: 15 | G6: 张吉 | H6: 196.5 | I6: 84.99 | J6: 81.795 | K6: 3
A7: 4 | B7: 九江经开区 | C7: 九江经开区中小学校 | D7: 小学-语文 | E7: 400060101010 | F7: 15 | G7: 董瑞琦 | H7: 196.5 | I7: 84.26 | J7: 81.43 | K7: 4
A8: 5 | B8: 九江经开区 | C8: 九江经开区中小学校 | D8: 小学-语文 | E8: 400060101010 | F8: 15 | G8: 陈方芳 | H8: 193.0 | I8: 85.64 | J8: 81.42 | K8: 5
A9: 6 | B9: 九江经开区 | C9: 九江经开区中小学校 | D9: 小学-语文 | E9: 400060101010 | F9: 15 | G9: 俞梦颖 | H9: 196.0 | I9: 84.16 | J9: 81.28 | K9: 6
A10: 7 | B10: 九江经开区 | C10: 九江经开区中小学校 | D10: 小学-语文 | E10: 400060101010 | F10: 15 | G10: 黄思婕 | H10: 193.0 | I10: 85.21 | J10: 81.205 | K10: 7
A11: 8 | B11: 九江经开区 | C11: 九江经开区中小学校 | D11: 小学-语文 | E11: 400060101010 | F11: 15 | G11: 黄佳馨 | H11: 192.5 | I11: 84.77 | J11: 80.885 | K11: 8
A12: 9 | B12: 九江经开区 | C12: 九江经开区中小学校 | D12: 小学-语文 | E12: 400060101010 | F12: 15 | G12: 王子丹 | H12: 189.5 | I12: 85.5 | J12: 80.65 | K12: 9
A13: 10 | B13: 九江经开区 | C13: 九江经开区中小学校 | D13: 小学-语文 | E13: 400060101010 | F13: 15 | G13: 吴盈盈 | H13: 188.0 | I13: 85.66 | J13: 80.43 | K13: 10
A14: 11 | B14: 九江经开区 | C14: 九江经开区中小学校 | D14: 小学-语文 | E14: 400060101010 | F14: 15 | G14: 宋袁珂 | H14: 186.0 | I14: 84.62 | J14: 79.51 | K14: 11
A15: 12 | B15: 九江经开区 | C15: 九江经开区中小学校 | D15: 小学-语文 | E15: 400060101010 | F15: 15 | G15: 严刘霞 | H15: 185.0 | I15: 84.37 | J15: 79.185 | K15: 12
A16: 13 | B16: 九江经开区 | C16: 九江经开区中小学校 | D16: 小学-语文 | E16: 400060101010 | F16: 15 | G16: 王丽君 | H16: 193.5 | I16: 80.53 | J16: 78.965 | K16: 13
A17: 14 | B17: 九江经开区 | C17: 九江经开区中小学校 | D17: 小学-语文 | E17: 400060101010 | F17: 15 | G17: 刘伶 | H17: 180.5 | I17: 85.66 | J17: 78.93 | K17: 14
A18: 15 | B18: 九江经开区 | C18: 九江经开区中小学校 | D18: 小学-语文 | E18: 400060101010 | F18: 15 | G18: 陈芳甜 | H18: 181.5 | I18: 84.94 | J18: 78.77 | K18: 15
A19: 16 | B19: 九江经开区 | C19: 九江经开区中小学校 | D19: 小学-语文 | E19: 400060101011 | F19: 3 | G19: 刘小娟 | H19: 199.5 | I19: 84.33 | J19: =H19*0.2+I19*0.5 -> 82.065 | K19: 1
A20: 17 | B20: 九江经开区 | C20: 九江经开区中小学校 | D20: 小学-语文 | E20: 400060101011 | F20: 3 | G20: 张文英 | H20: 193.0 | I20: 83.36 | J20: 80.28 | K20: 2
A21: 18 | B21: 九江经开区 | C21: 九江经开区中小学校 | D21: 小学-语文 | E21: 400060101011 | F21: 3 | G21: 周倩倩 | H21: 185.5 | I21: 83.68 | J21: 78.94 | K21: 3
A22: 19 | B22: 九江经开区 | C22: 九江经开区中小学校 | D22: 小学-语文 | E22: 400060101012 | F22: 4 | G22: 程紫君 | H22: 204.5 | I22: 84.90 | J22: 83.35 | K22: 1
A23: 20 | B23: 九江经开区 | C23: 九江经开区中小学校 | D23: 小学-语文 | E23: 400060101012 | F23: 4 | G23: 张惠敏 | H23: 197.5 | I23: 83.34 | J23: 81.17 | K23: 2
A24: 21 | B24: 九江经开区 | C24: 九江经开区中小学校 | D24: 小学-语文 | E24: 400060101012 | F24: 4 | G24: 刘倩 | H24: 194.5 | I24: 81.68 | J24: 79.74 | K24: 3
A25: 22 | B25: 九江经开区 | C25: 九江经开区中小学校 | D25: 小学-语文 | E25: 400060101012 | F25: 4 | G25: 范婷婷 | H25: 190.0 | I25: 83.35 | J25: 79.675 | K25: 4
A26: 23 | B26: 九江经开区 | C26: 九江经开区中小学校 | D26: 初中-语文 | E26: 400060201020 | F26: 2 | G26: 熊娟 | H26: 202.5 | I26: 83.61 | J26: =0.2*H26+0.5*I26 -> 82.305 | K26: 1
A27: 24 | B27: 九江经开区 | C27: 九江经开区中小学校 | D27: 初中-语文 | E27: 400060201020 | F27: 2 | G27: 李细红 | H27: 200.5 | I27: 83.53 | J27: 81.865 | K27: 2
A28: 25 | B28: 九江经开区 | C28: 九江经开区中小学校 | D28: 初中-语文 | E28: 400060201021 | F28: 2 | G28: 曹梅 | H28: 189.5 | I28: 83.40 | J28: 79.6 | K28: 1
A29: 26 | B29: 九江经开区 | C29: 九江经开区中小学校 | D29: 初中-语文 | E29: 400060201021 | F29: 2 | G29: 江琦 | H29: 161.0 | I29: 83.54 | J29: 73.97 | K29: 2
A30: 27 | B30: 九江经开区 | C30: 九江经开区中小学校 | D30: 初中-英语 | E30: 400060203024 | F30: 1 | G30: 崔伟伟 | H30: 196.0 | I30: 82.59 | J30: =H30*0.2+I30*0.5 -> 80.495 | K30: 1
A31: 28 | B31: 九江经开区 | C31: 九江经开区中小学校 | D31: 初中-英语 | E31: 400060203023 | F31: 3 | G31: 吴丽平 | H31: 212.5 | I31: 82.63 | J31: 83.815 | K31: 1
A32: 29 | B32: 九江经开区 | C32: 九江经开区中小学校 | D32: 初中-英语 | E32: 400060203023 | F32: 3 | G32: 丁慧云 | H32: 205.5 | I32: 83.23 | J32: 82.715 | K32: 2
A33: 30 | B33: 九江经开区 | C33: 九江经开区中小学校 | D33: 初中-英语 | E33: 400060203023 | F33: 3 | G33: 吴晓妹 | H33: 205.5 | I33: 81.92 | J33: 82.06 | K33: 3
A34: 31 | B34: 九江经开区 | C34: 九江经开区中小学校 | D34: 小学-英语 | E34: 400060103017 | F34: 4 | G34: 潘慧萍 | H34: 213.0 | I34: 83.33 | J34: =0.2*H34+0.5*I34 -> 84.265 | K34: 1
A35: 32 | B35: 九江经开区 | C35: 九江经开区中小学校 | D35: 小学-英语 | E35: 400060103017 | F35: 4 | G35: 刘生华 | H35: 214.5 | I35: 82.53 | J35: 84.165 | K35: 2
A36: 33 | B36: 九江经开区 | C36: 九江经开区中小学校 | D36: 小学-英语 | E36: 400060103017 | F36: 4 | G36: 唐阿静 | H36: 209.0 | I36: 83.72 | J36: 83.66 | K36: 3
A37: 34 | B37: 九江经开区 | C37: 九江经开区中小学校 | D37: 小学-英语 | E37: 400060103017 | F37: 4 | G37: 沈洁 | H37: 207.0 | I37: 84.15 | J37: 83.475 | K37: 4
A38: 35 | B38: 九江经开区 | C38: 九江经开区中小学校 | D38: 初中-道德与法治 | E38: 400060215025 | F38: 1 | G38: 刘镜 | H38: 212.5 | I38: 84.44 | J38: =H38*0.2+I38*0.5 -> 84.72 | K38: 1
A39: 36 | B39: 九江经开区 | C39: 九江经开区中小学校 | D39: 小学-道德与法治 | E39: 400060114019 | F39: 4 | G39: 程芳芳 | H39: 211.5 | I39: 85.38 | J39: =0.2*H39+I39*0.5 -> 84.99 | K39: 1
A40: 37 | B40: 九江经开区 | C40: 九江经开区中小学校 | D40: 小学-道德与法治 | E40: 400060114019 | F40: 4 | G40: 喻越 | H40: 212.5 | I40: 84.76 | J40: 84.88 | K40: 2
A41: 38 | B41: 九江经开区 | C41: 九江经开区中小学校 | D41: 小学-道德与法治 | E41: 400060114019 | F41: 4 | G41: 钟渐冰 | H41: 208.5 | I41: 85.28 | J41: 84.34 | K41: 3
A42: 39 | B42: 九江经开区 | C42: 九江经开区中小学校 | D42: 小学-道德与法治 | E42: 400060114019 | F42: 4 | G42: 卢佳柳 | H42: 204.5 | I42: 83.77 | J42: 82.785 | K42: 4
A43: 40 | B43: 九江经开区 | C43: 九江经开区中小学校 | D43: 初中-体育与健康 | E43: 400060213029 | F43: 2 | G43: 杨双 | H43: 188.0 | I43: 83.62 | J43: =0.16*H43+0.6*I43 -> 80.252 | K43: 1
A44: 41 | B44: 九江经开区 | C44: 九江经开区中小学校 | D44: 初中-体育与健康 | E44: 400060213029 | F44: 2 | G44: 文志钢 | H44: 171.5 | I44: 85.03 | J44: 78.458 | K44: 2
A45: 42 | B45: 九江经开区 | C45: 九江经开区中小学校 | D45: 小学-美术 | E45: 400060110016 | F45: 4 | G45: 胡玉媛 | H45: 213.5 | I45: 86.23 | J45: 85.898 | K45: 1
A46: 43 | B46: 九江经开区 | C46: 九江经开区中小学校 | D46: 小学-美术 | E46: 400060110016 | F46: 4 | G46: 张雪纯 | H46: 203.0 | I46: 86.83 | J46: 84.578 | K46: 2
A47: 44 | B47: 九江经开区 | C47: 九江经开区中小学校 | D47: 小学-美术 | E47: 400060110016 | F47: 4 | G47: 樊姝 | H47: 209.5 | I47: 83.65 | J47: 83.71 | K47: 3
A48: 45 | B48: 九江经开区 | C48: 九江经开区中小学校 | D48: 小学-美术 | E48: 400060110016 | F48: 4 | G48: 胡天烨 | H48: 203.0 | I48: 83.96 | J48: 82.856 | K48: 4
A49: 46 | B49: 九江经开区 | C49: 九江经开区中小学校 | D49: 小学-数学 | E49: 400060102013 | F49: 8 | G49: 郑轲 | H49: 216.5 | I49: 84.81 | J49: =0.2*H49+0.5*I49 -> 85.705 | K49: 1
A50: 47 | B50: 九江经开区 | C50: 九江经开区中小学校 | D50: 小学-数学 | E50: 400060102013 | F50: 8 | G50: 花宇欣 | H50: 211.0 | I50: 84.76 | J50: 84.58 | K50: 2
A51: 48 | B51: 九江经开区 | C51: 九江经开区中小学校 | D51: 小学-数学 | E51: 400060102013 | F51: 8 | G51: 李小兰 | H51: 216.5 | I51: 82.2 | J51: 84.4 | K51: 3
A52: 49 | B52: 九江经开区 | C52: 九江经开区中小学校 | D52: 小学-数学 | E52: 400060102013 | F52: 8 | G52: 冯文琪 | H52: 222.0 | I52: 79.96 | J52: 84.38 | K52: 4
A53: 50 | B53: 九江经开区 | C53: 九江经开区中小学校 | D53: 小学-数学 | E53: 400060102013 | F53: 8 | G53: 徐婷 | H53: 210.5 | I53: 83.64 | J53: 83.92 | K53: 5
A54: 51 | B54: 九江经开区 | C54: 九江经开区中小学校 | D54: 小学-数学 | E54: 400060102013 | F54: 8 | G54: 胡婕 | H54: 208.5 | I54: 83.93 | J54: 83.665 | K54: 6
A55: 52 | B55: 九江经开区 | C55: 九江经开区中小学校 | D55: 小学-数学 | E55: 400060102013 | F55: 8 | G55: 彭莹莹 | H55: 205.5 | I55: 84.89 | J55: 83.545 | K55: 7
A56: 53 | B56: 九江经开区 | C56: 九江经开区中小学校 | D56: 小学-数学 | E56: 400060102013 | F56: 8 | G56: 黄璟 | H56: 204.0 | I56: 84.29 | J56: 82.945 | K56: 8
A57: 54 | B57: 九江经开区 | C57: 九江经开区中小学校 | D57: 初中-数学 | E57: 400060202022 | F57: 3 | G57: 郭如思 | H57: 221.0 | I57: 83.98 | J57: 86.19 | K57: 1
A58: 55 | B58: 九江经开区 | C58: 九江经开区中小学校 | D58: 初中-数学 | E58: 400060202022 | F58: 3 | G58: 江欢欢 | H58: 204.0 | I58: 83.69 | J58: 82.645 | K58: 2
A59: 56 | B59: 九江经开区 | C59: 九江经开区中小学校 | D59: 初中-数学 | E59: 400060202022 | F59: 3 | G59: 张欢 | H59: 200.5 | I59: 84.23 | J59: 82.215 | K59: 3
A60: 57 | B60: 九江经开区 | C60: 九江经开区中小学校 | D60: 小学-数学 | E60: 400060102014 | F60: 2 | G60: 杨帆 | H60: 205.0 | I60: 80.9 | J60: 81.45 | K60: 1
A61: 58 | B61: 九江经开区 | C61: 九江经开区中小学校 | D61: 小学-数学 | E61: 400060102014 | F61: 2 | G61: 沈雅文 | H61: 215.5 | I61: 76.57 | J61: 81.385 | K61: 2
A62: 59 | B62: 九江经开区 | C62: 九江经开区中小学校 | D62: 小学-数学 | E62: 400060102015 | F62: 10 | G62: 胡一萍 | H62: 224.0 | I62: 82.29 | J62: 85.945 | K62: 1
A63: 60 | B63: 九江经开区 | C63: 九江经开区中小学校 | D63: 小学-数学 | E63: 400060102015 | F63: 10 | G63: 洪艳美 | H63: 218.5 | I63: 81.32 | J63: 84.36 | K63: 2
A64: 61 | B64: 九江经开区 | C64: 九江经开区中小学校 | D64: 小学-数学 | E64: 400060102015 | F64: 10 | G64: 柯颖 | H64: 225.0 | I64: 78.29 | J64: 84.145 | K64: 3
A65: 62 | B65: 九江经开区 | C65: 九江经开区中小学校 | D65: 小学-数学 | E65: 400060102015 | F65: 10 | G65: 许欣 | H65: 223.5 | I65: 78.76 | J65: 84.08 | K65: 4
A66: 63 | B66: 九江经开区 | C66: 九江经开区中小学校 | D66: 小学-数学 | E66: 400060102015 | F66: 10 | G66: 夏湾湾 | H66: 219.5 | I66: 79.73 | J66: 83.765 | K66: 5
A67: 64 | B67: 九江经开区 | C67: 九江经开区中小学校 | D67: 小学-数学 | E67: 400060102015 | F67: 10 | G67: 柯杉杉 | H67: 219.0 | I67: 79.83 | J67: 83.715 | K67: 6
A68: 65 | B68: 九江经开区 | C68: 九江经开区中小学校 | D68: 小学-数学 | E68: 400060102015 | F68: 10 | G68: 罗莎 | H68: 216.0 | I68: 80.33 | J68: 83.365 | K68: 7
A69: 66 | B69: 九江经开区 | C69: 九江经开区中小学校 | D69: 小学-数学 | E69: 400060102015 | F69: 10 | G69: 吴雨萍 | H69: 217.0 | I69: 79.64 | J69: 83.22 | K69: 8
A70: 67 | B70: 九江经开区 | C70: 九江经开区中小学校 | D70: 小学-数学 | E70: 400060102015 | F70: 10 | G70: 傅娇 | H70: 211.5 | I70: 81.00 | J70: 82.8 | K70: 9
A71: 68 | B71: 九江经开区 | C71: 九江经开区中小学校 | D71: 小学-数学 | E71: 400060102015 | F71: 10 | G71: 胡志红 | H71: 215.0 | I71: 79.29 | J71: 82.645 | K71: 10
A72: 69 | B72: 九江经开区 | C72: 九江经开区中小学校 | D72: 小学-科学 | E72: 400060111018 | F72: 4 | G72: 冯婧 | H72: 199.0 | I72: 83.84 | J72: =0.2*H72+I72*0.5 -> 81.72 | K72: 1
A73: 70 | B73: 九江经开区 | C73: 九江经开区中小学校 | D73: 小学-科学 | E73: 400060111018 | F73: 4 | G73: 候兰华 | H73: 195.0 | I73: 82.35 | J73: 80.175 | K73: 2
A74: 71 | B74: 九江经开区 | C74: 九江经开区中小学校 | D74: 小学-科学 | E74: 400060111018 | F74: 4 | G74: 熊轶君 | H74: 192.5 | I74: 82.01 | J74: 79.505 | K74: 3
A75: 72 | B75: 九江经开区 | C75: 九江经开区中小学校 | D75: 小学-科学 | E75: 400060111018 | F75: 4 | G75: 过娟 | H75: 190.0 | I75: 81.66 | J75: 78.83 | K75: 4
A76: 73 | B76: 九江经开区 | C76: 九江经开区中小学校 | D76: 初中-物理 | E76: 400060206028 | F76: 3 | G76: 余鑫 | H76: 178.5 | I76: 82.99 | J76: =H76*0.2+0.5*I76 -> 77.195 | K76: 1
A77: 74 | B77: 九江经开区 | C77: 九江经开区中小学校 | D77: 初中-物理 | E77: 400060206028 | F77: 3 | G77: 柯文秀 | H77: 180.0 | I77: 82.23 | J77: =H77*0.2+0.5*I77 -> 77.115 | K77: 2
A78: 75 | B78: 九江经开区 | C78: 九江经开区中小学校 | D78: 初中-物理 | E78: 400060206028 | F78: 3 | G78: 戴辉 | H78: 163.0 | I78: 81.01 | J78: =H78*0.2+0.5*I78 -> 73.105 | K78: 3
A79: 76 | B79: 九江经开区 | C79: 九江经开区中小学校 | D79: 初中-生物 | E79: 400060208027 | F79: 3 | G79: 喻佳湾 | H79: 209.5 | I79: 84.08 | J79: 83.94 | K79: 1
A80: 77 | B80: 九江经开区 | C80: 九江经开区中小学校 | D80: 初中-生物 | E80: 400060208027 | F80: 3 | G80: 吴玲玲 | H80: 210.5 | I80: 83.62 | J80: 83.91 | K80: 2
A81: 78 | B81: 九江经开区 | C81: 九江经开区中小学校 | D81: 初中-生物 | E81: 400060208027 | F81: 3 | G81: 徐莉莉 | H81: 208.0 | I81: 84.16 | J81: =H81*0.2+0.5*I81 -> 83.68 | K81: 3
A82: 79 | B82: 九江经开区 | C82: 九江经开区中小学校 | D82: 初中-地理 | E82: 400060205026 | F82: 2 | G82: 罗倩 | H82: 180.0 | I82: 82.22 | J82: =H82*0.2+0.5*I82 -> 77.11 | K82: 1
A83: 80 | B83: 九江经开区 | C83: 九江经开区中小学校 | D83: 初中-地理 | E83: 400060205026 | F83: 2 | G83: 陈葱 | H83: 177.5 | I83: 82.61 | J83: =0.2*H83+0.5*I83 -> 76.805 | K83: 2
